fUSD/lending_fUSD_20250804
["ID","MTS","AMOUNT","RATE_DAILY","PERIOD"]
[377246433,1754306067831,-7506.25,0.00042191,2]
[377246434,1754306067840,-1191.23,0.00042191,2]
[377246435,1754306067850,-1349.97,0.00042191,2]
[377246436,1754306067860,-1074.04,0.00042191,2]
[377246437,1754306067870,-3769.24,0.00042191,2]
[377246438,1754306067880,-988.14,0.00042191,2]
[377246439,1754306067891,-577.79,0.00042191,2]
[377246440,1754306067901,-1741.31,0.00042191,2]
[377246441,1754306067911,-1932.57,0.00042191,2]
[377246442,1754306067920,-1252.42,0.00042191,2]
[377246443,1754306067930,-3095.42,0.00042191,2]
[377246444,1754306067939,-1555.06,0.00042191,2]
[377246445,1754306067949,-400.0,0.00042191,2]
[377246446,1754306067961,-3383.45,0.00042191,2]
[377246447,1754306067971,-495.93,0.00042191,2]
[377246448,1754306067981,-400.0,0.00042191,2]
[377246449,1754306067991,-2072.61,0.00042191,2]
[377246450,1754306068000,-1985.84,0.00042191,2]
[377246451,1754306068010,-1753.85,0.00042191,2]
[377246452,1754306068020,-400.0,0.00042191,2]
[377246453,1754306068030,-539.91124645,0.00042191,2]
[377246454,1754306068042,-1602.8,0.00042191,2]
[377246455,1754306068054,-3681.37,0.00042191,2]
[377246456,1754306068063,-1605.29,0.00042191,2]
[377246457,1754306068076,-1613.77,0.00042191,2]
[377246458,1754306068086,-1726.45,0.00042191,2]
[377246459,1754306068096,-1109.72,0.00042191,2]
[377246460,1754306068106,-1657.08,0.00042191,2]
[377246461,1754306068116,-1265.39,0.00042191,2]
[377246462,1754306068126,-531.77,0.00042191,2]
[377246463,1754306068136,-1790.09,0.00042191,2]
[377246464,1754306068145,-994.35,0.00042191,2]
[377246465,1754306068154,-1207.63,0.00042191,2]
[377246466,1754306068164,-2197.37,0.00042191,2]
[377246467,1754306068173,-1697.44,0.00042191,2]
[377246468,1754306068183,-400.0,0.00042191,2]
[377246469,1754306068192,-1044.0,0.00042191,2]
[377246470,1754306068202,-1273.07,0.00042191,2]
[377246471,1754306068212,-971.37,0.00042191,2]
[377246472,1754306068223,-400.0,0.00042191,2]
[377246473,1754306068233,-1809.15,0.00042191,2]
[377246474,1754306068243,-8777.73,0.00042191,2]
[377246475,1754306068253,-596.6,0.00042191,2]
[377246476,1754306068262,-2275.44,0.00042191,2]
[377246477,1754306068273,-1037.03,0.00042191,2]
[377246478,1754306068282,-490.62,0.00042191,2]
[377246479,1754306068293,-1153.38,0.00042191,2]
[377246480,1754306068303,-1600.04,0.00042191,2]
[377246481,1754306068313,-599.54,0.00042191,2]
[377246482,1754306068323,-1213.48,0.00042191,2]
[377246483,1754306068334,-1097.82,0.00042191,2]
[377246484,1754306068343,-797.89,0.00042191,2]
[377246485,1754306068354,-448.66,0.00042191,2]
[377246486,1754306068365,-6082.8,0.00042191,2]
[377246487,1754306068375,-596.19,0.00042191,2]
[377246488,1754306068386,-10707.5,0.00042191,2]
[377246489,1754306068396,-1518.17,0.00042191,2]
[377246490,1754306068406,-4934.5,0.00042191,2]
[377246491,1754306068415,-2575.64,0.00042191,2]
[377246492,1754306068425,-400.0,0.00042191,2]
[377246493,1754306068435,-1048.1,0.00042191,2]
[377246494,1754306068444,-2188.32,0.00042191,2]
[377246495,1754306068454,-1283.58,0.00042191,2]
[377246496,1754306068464,-1614.51,0.00042191,2]
[377246497,1754306068474,-400.0,0.00042191,2]
[377246498,1754306068483,-586.94,0.00042191,2]
[377246499,1754306068493,-1936.12,0.00042191,2]
[377246500,1754306068503,-1367.27,0.00042191,2]
[377246501,1754306068513,-400.0,0.00042191,2]
[377246502,1754306068523,-1400.57,0.00042191,2]
[377246503,1754306068533,-500.49,0.00042191,2]
[377246504,1754306068543,-400.0,0.00042191,2]
[377246505,1754306068552,-3431.45,0.00042191,2]
[377246506,1754306068562,-1254.59,0.00042191,2]
[377246507,1754306068572,-1128.88,0.00042191,2]
[377246508,1754306068582,-16704.11,0.00042191,2]
[377246509,1754306068591,-1799.3,0.00042191,2]
[377246510,1754306068601,-400.0,0.00042191,2]
[377246511,1754306068611,-1494.19,0.00042191,2]
[377246512,1754306068621,-871.27,0.00042191,2]
[377246513,1754306068631,-4814.39,0.00042191,2]
[377246514,1754306068641,-1442.54,0.00042191,2]
[377246515,1754306068651,-2112.05,0.00042191,2]
[377246516,1754306068661,-525.6,0.00042191,2]
[377246517,1754306068671,-1339.76,0.00042191,2]
[377246518,1754306068680,-400.0,0.00042191,2]
[377246519,1754306068690,-2310.1,0.00042191,2]
[377246520,1754306068710,-637.09,0.00042191,2]
[377246521,1754306068721,-571.02,0.00042191,2]
[377246522,1754306068731,-1651.01,0.00042191,2]
[377246523,1754306068741,-845.12,0.00042191,2]
[377246524,1754306068751,-953.11,0.00042191,2]
[377246525,1754306068761,-2192.65,0.00042191,2]
[377246526,1754306068772,-533.36,0.00042191,2]
[377246527,1754306068782,-958.06,0.00042191,2]
[377246528,1754306068792,-1650.75,0.00042191,2]
[377246529,1754306068802,-350.0,0.00042192,10]
[377246530,1754306068813,-359.08,0.00042192,30]
[377246531,1754306068823,-537.09,0.00042192,30]
[377246532,1754306068832,-150.0,0.00042192,30]
[377246533,1754306068842,-537.09,0.00042192,30]
[377246534,1754306068853,-150.0,0.00042192,30]
[377246535,1754306068863,-537.09,0.00042192,30]
[377246536,1754306068873,-150.0,0.00042192,30]
[377246537,1754306068884,-537.09,0.00042192,30]
[377246538,1754306068894,-150.0,0.00042192,30]
[377246539,1754306068904,-448.43,0.00042192,30]
[377246540,1754306068914,-150.0,0.00042192,30]
[377246541,1754306068924,-33528.68283131,0.00042196,30]
[377246542,1754306068934,-33528.68283131,0.00042196,30]
[377246543,1754306068944,-33528.68283131,0.00042196,30]
[377246544,1754306068954,-33528.68283131,0.00042196,30]
[377246545,1754306068967,-4000.0,0.00042208,10]
[377246546,1754306068976,-150.0,0.00042209,2]
[377246547,1754306068986,-309.29654756,0.00042215,2]
[377246548,1754306068996,-170.50132154,0.00042215,2]
[377246549,1754306069006,-504.0,0.0004223,18]
[377246550,1754306069016,-150.0,0.00042272,2]
[377246551,1754306069026,-864.0,0.00042278,2]
[377246552,1754306069035,-4137.0,0.00042278,2]
[377246553,1754306069045,-6070.0,0.00042278,2]
[377246554,1754306069055,-21419.0,0.00042278,2]
[377246555,1754306069065,-1000.0,0.000423,7]
[377246556,1754306069075,-2588.34,0.00042325,2]
[377246557,1754306069085,-150.0,0.00042339,2]
[377246558,1754306069095,-150.0,0.00042341,2]
[377246559,1754306069105,-4500.0,0.00042356,10]
[377246560,1754306069114,-806.84059368,0.00042369,14]
[377246561,1754306069124,-1000.0,0.000424,7]
[377246562,1754306069134,-150.0,0.00042424,2]
[377246563,1754306069149,-742.0,0.0004243,2]
[377246564,1754306069160,-150.0,0.00042457,2]
[377246565,1754306069169,-1179.88,0.00042464,120]
[377246566,1754306069180,-547.58,0.00042465,2]
[377246567,1754306069190,-458.04,0.00042465,2]
[377246568,1754306069200,-1200.66,0.00042465,2]
[377246569,1754306069210,-520.3,0.00042465,2]
[377246570,1754306069220,-586.47,0.00042465,2]
[377246571,1754306069230,-400.0,0.00042465,2]
[377246572,1754306069239,-452.57,0.00042465,2]
[377246573,1754306069249,-1404.01,0.00042465,2]
[377246574,1754306069259,-400.0,0.00042465,2]
[377246575,1754306069269,-472.84,0.00042465,2]
[377246576,1754306069279,-1341.8,0.00042465,2]
[377246577,1754306069289,-484.06,0.00042465,2]
[377246578,1754306069299,-667.41,0.00042465,2]
[377246579,1754306069309,-1693.03,0.00042465,2]
[377246580,1754306069319,-537.19,0.00042465,2]
[377246581,1754306069329,-849.99,0.00042465,2]
[377246582,1754306069340,-931.14,0.00042465,2]
[377246583,1754306069350,-458.07,0.00042465,2]
[377246584,1754306069361,-1076.15,0.00042465,2]
[377246585,1754306069371,-402.34533079,0.00042465,2]
[377246586,1754306069381,-1903.28,0.00042465,2]
[377246587,1754306069391,-411.33641494,0.00042465,2]
[377246588,1754306069401,-643.67,0.00042465,2]
[377246589,1754306069411,-1064.8,0.00042465,2]
[377246590,1754306069421,-595.01,0.00042465,2]
[377246591,1754306069432,-1756.29,0.00042465,2]
[377246592,1754306069442,-824.14,0.00042465,2]
[377246593,1754306069452,-400.0,0.00042465,2]
[377246594,1754306069462,-1696.93,0.00042465,2]
[377246595,1754306069471,-767.86,0.00042465,2]
[377246596,1754306069482,-400.0,0.00042465,2]
[377246597,1754306069492,-400.0,0.00042465,2]
[377246598,1754306069503,-1492.28,0.00042465,2]
[377246599,1754306069513,-661.87,0.00042465,2]
[377246600,1754306069523,-400.0,0.00042465,2]
[377246601,1754306069533,-400.45,0.00042465,2]
[377246602,1754306069543,-1939.24,0.00042465,2]
[377246603,1754306069553,-786.11,0.00042465,2]
[377246604,1754306069563,-835.46,0.00042465,2]
[377246605,1754306069578,-1820.66,0.00042465,2]
[377246606,1754306069589,-463.48,0.00042465,2]
[377246607,1754306069599,-400.0,0.00042465,2]
[377246608,1754306069610,-1385.33,0.00042465,2]
[377246609,1754306069621,-498.89,0.00042465,2]
[377246610,1754306069631,-499.13,0.00042465,2]
[377246611,1754306069640,-400.0,0.00042465,2]
[377246612,1754306069650,-400.0,0.00042465,2]
[377246613,1754306069660,-1516.62,0.00042465,2]
[377246614,1754306069670,-900.0,0.00042465,2]
[377246615,1754306069680,-550.11,0.00042465,2]
[377246616,1754306069689,-1067.05,0.00042465,2]
[377246617,1754306069700,-454.35,0.00042465,2]
[377246618,1754306069709,-915.17,0.00042465,2]
[377246619,1754306069719,-1153.57,0.00042465,2]
[377246620,1754306069729,-487.99398845,0.00042465,2]
[377246621,1754306069738,-470.47,0.00042465,2]
[377246622,1754306069748,-1488.11,0.00042465,2]
[377246623,1754306069758,-742.88,0.00042465,2]
[377246624,1754306069768,-661.14,0.00042465,2]
[377246625,1754306069777,-441.54,0.00042465,2]
[377246626,1754306069787,-916.79,0.00042465,2]
[377246627,1754306069798,-587.55,0.00042465,2]
[377246628,1754306069807,-424.37,0.00042465,2]
[377246629,1754306069818,-1102.43,0.00042465,2]
[377246630,1754306069828,-232.82831448,0.00042465,2]
[377246631,1754306069837,-1188.91,0.00042465,2]
[377246632,1754306069848,-1819.37,0.00042465,2]
[377246633,1754306069858,-439.11,0.00042465,2]
[377246634,1754306069868,-344.64500973,0.00042465,2]
[377246635,1754306069878,-1119.27,0.00042465,2]
[377246636,1754306069888,-271.97365959,0.00042465,2]
[377246637,1754306069898,-884.11,0.00042465,2]
[377246638,1754306069908,-465.18,0.00042465,2]
[377246639,1754306069918,-400.0,0.00042465,2]
[377246640,1754306069928,-1124.7,0.00042465,2]
[377246641,1754306069937,-953.16,0.00042465,2]
[377246642,1754306069947,-449.54,0.00042465,2]
[377246643,1754306069957,-977.67,0.00042465,2]
[377246644,1754306069971,-1903.44,0.00042465,2]
[377246645,1754306069981,-2558.85,0.00042465,2]
[377246646,1754306069991,-480.36,0.00042465,2]
[377246647,1754306070003,-1797.0,0.00042465,2]
[377246648,1754306070013,-400.0,0.00042465,2]
[377246649,1754306070027,-1399.58,0.00042465,2]
[377246650,1754306070038,-2716.06,0.00042465,2]
[377246651,1754306070048,-459.32,0.00042465,2]
[377246652,1754306070058,-687.73,0.00042465,2]
[377246653,1754306070441,-400.0,0.00042465,2]
[377246654,1754306070451,-1027.4,0.00042465,2]
[377246655,1754306070461,-452.62,0.00042465,2]
[377246656,1754306070471,-400.0,0.00042465,2]
[377246657,1754306070482,-743.48,0.00042465,2]
[377246658,1754306070492,-4159.78,0.00042465,2]
[377246659,1754306070501,-2022.23,0.00042465,2]
[377246660,1754306070511,-500.0,0.00042465,2]
[377246661,1754306070521,-1103.2,0.00042465,2]
[377246662,1754306070531,-2146.76,0.00042465,2]
[377246663,1754306070541,-697.9,0.00042465,2]
[377246664,1754306070550,-700.27,0.00042465,2]
[377246665,1754306070559,-1197.92,0.00042465,2]
[377246666,1754306070568,-400.0,0.00042465,2]
[377246667,1754306070578,-763.21,0.00042465,2]
[377246668,1754306070588,-664.53,0.00042465,2]
[377246669,1754306070597,-442.05,0.00042465,2]
[377246670,1754306070606,-862.35,0.00042465,2]
[377246671,1754306070617,-624.93,0.00042465,2]
[377246672,1754306070626,-793.15,0.00042465,2]
[377246673,1754306070635,-639.19,0.00042465,2]
[377246674,1754306070645,-605.24,0.00042465,2]
[377246675,1754306070654,-400.0,0.00042465,2]
[377246676,1754306070664,-1841.68,0.00042465,2]
[377246677,1754306070673,-2472.68,0.00042465,2]
[377246678,1754306070685,-1091.38,0.00042465,2]
[377246679,1754306070695,-569.15,0.00042465,2]
[377246680,1754306070705,-482.87,0.00042465,2]
[377246681,1754306070715,-1179.1,0.00042465,2]
[377246682,1754306070725,-400.0,0.00042465,2]
[377246683,1754306070735,-1320.13,0.00042465,2]
[377246684,1754306070744,-1348.28,0.00042465,2]
[377246685,1754306070754,-908.97,0.00042465,2]
[377246686,1754306070763,-1407.62,0.00042465,2]
[377246687,1754306070773,-1144.27,0.00042465,2]
[377246688,1754306070783,-448.56,0.00042465,2]
[377246689,1754306070793,-400.0,0.00042465,2]
[377246690,1754306070802,-853.71,0.00042465,2]
[377246691,1754306070812,-609.84,0.00042465,2]
[377246692,1754306070822,-400.0,0.00042465,2]
[377246693,1754306070831,-1274.99,0.00042465,2]
[377246694,1754306070841,-600.02,0.00042465,2]
[377246695,1754306070850,-800.16,0.00042465,2]
[377246696,1754306070860,-2778.93,0.00042465,2]
[377246697,1754306070869,-500.6,0.00042465,2]
[377246698,1754306070878,-499.94,0.00042465,2]
[377246699,1754306070888,-627.38,0.00042465,2]
[377246700,1754306070897,-787.7,0.00042465,2]
[377246701,1754306070906,-461.32,0.00042465,2]
[377246702,1754306070915,-1107.49,0.00042465,2]
[377246703,1754306070925,-400.0,0.00042465,2]
[377246704,1754306070935,-1182.54,0.00042465,2]
[377246705,1754306070944,-2273.69,0.00042465,2]
[377246706,1754306070954,-790.39,0.00042465,2]
[377246707,1754306070966,-516.4100901,0.00042465,2]
[377246708,1754306070975,-400.0,0.00042465,2]
[377246709,1754306070986,-2544.09,0.00042465,2]
[377246710,1754306070996,-746.2,0.00042465,2]
[377246711,1754306071006,-400.0,0.00042465,2]
[377246712,1754306071015,-1066.14,0.00042465,2]
[377246713,1754306071024,-513.6,0.00042465,2]
[377246714,1754306071033,-856.62,0.00042465,2]
[377246715,1754306071042,-445.82,0.00042465,2]
[377246716,1754306071052,-1070.42,0.00042465,2]
[377246717,1754306071061,-548.68,0.00042465,2]
[377246718,1754306071070,-160.33877938,0.00042465,2]
[377246719,1754306071079,-413.36,0.00042465,2]
[377246720,1754306071088,-400.0,0.00042465,2]
[377246721,1754306071097,-460.79,0.00042465,2]
[377246722,1754306071113,-865.19,0.00042465,2]
[377246723,1754306071123,-1968.28,0.00042465,2]
[377246724,1754306071133,-1422.91,0.00042465,2]
[377246725,1754306071142,-1119.16,0.00042465,2]
[377246726,1754306071151,-1354.16,0.00042465,2]
[377246727,1754306071160,-625.15,0.00042465,2]
[377246728,1754306071170,-400.0,0.00042465,2]
[377246729,1754306071179,-1598.25,0.00042465,2]
[377246730,1754306071188,-1192.41,0.00042465,2]
[377246731,1754306071197,-400.0,0.00042465,2]
[377246732,1754306071206,-668.58,0.00042465,2]
[377246733,1754306071215,-575.89,0.00042465,2]
[377246734,1754306071225,-1116.34,0.00042465,2]
[377246735,1754306071234,-1214.62,0.00042465,2]
[377246736,1754306071243,-1137.04,0.00042465,2]
[377246737,1754306071252,-1590.64,0.00042465,2]
[377246738,1754306071262,-400.0,0.00042465,2]
[377246739,1754306071272,-1138.57,0.00042465,2]
[377246740,1754306071282,-1069.29,0.00042465,2]
[377246741,1754306071291,-324.87447531,0.00042465,2]
[377246742,1754306071301,-400.0,0.00042465,2]
[377246743,1754306071311,-1131.33,0.00042465,2]
[377246744,1754306071320,-400.0,0.00042465,2]
[377246745,1754306071329,-1171.06,0.00042465,2]
[377246746,1754306071338,-894.77,0.00042465,2]
[377246747,1754306071348,-1384.7,0.00042465,2]
[377246748,1754306071357,-599.89,0.00042465,2]
[377246749,1754306071367,-2355.79,0.00042465,2]
[377246750,1754306071376,-1091.28,0.00042465,2]
[377246751,1754306071385,-400.0,0.00042465,2]
[377246752,1754306071394,-2327.34,0.00042465,2]
[377246753,1754306071404,-773.66,0.00042465,2]
[377246754,1754306071413,-501.83,0.00042465,2]
[377246755,1754306071422,-1915.51,0.00042465,2]
[377246756,1754306071432,-781.86,0.00042465,2]
[377246757,1754306071441,-400.0,0.00042465,2]
[377246758,1754306071450,-829.75,0.00042465,2]
[377246759,1754306071459,-892.62,0.00042465,2]
[377246760,1754306071468,-538.38,0.00042465,2]
[377246761,1754306071477,-1000.94,0.00042465,2]
[377246762,1754306071486,-1098.02,0.00042465,2]
[377246763,1754306071496,-1453.05,0.00042465,2]
[377246764,1754306071505,-695.84,0.00042465,2]
[377246765,1754306071515,-1242.82,0.00042465,2]
[377246766,1754306071524,-437.7,0.00042465,2]
[377246767,1754306071533,-724.66,0.00042465,2]
[377246768,1754306071542,-1119.1,0.00042465,2]
[377246769,1754306071551,-917.85,0.00042465,2]
[377246770,1754306071560,-2290.17,0.00042465,2]
[377246771,1754306071570,-1165.58,0.00042465,2]
[377246772,1754306071579,-400.0,0.00042465,2]
[377246773,1754306071588,-1308.63,0.00042465,2]
[377246774,1754306071598,-906.75,0.00042465,2]
[377246775,1754306071607,-801.64,0.00042465,2]
[377246776,1754306071618,-564.37,0.00042465,2]
[377246777,1754306071627,-918.46,0.00042465,2]
[377246778,1754306071636,-2104.64,0.00042465,2]
[377246779,1754306071646,-1334.51,0.00042465,2]
[377246780,1754306071655,-1397.01,0.00042465,2]
[377246781,1754306071664,-1040.59,0.00042465,2]
[377246782,1754306071674,-1874.18,0.00042465,2]
[377246783,1754306071683,-1021.01,0.00042465,2]
[377246784,1754306071693,-1353.35,0.00042465,2]
[377246785,1754306071702,-781.51,0.00042465,2]
[377246786,1754306071712,-347.75831847,0.00042465,2]
[377246787,1754306071723,-1025.08,0.00042465,2]
[377246788,1754306071732,-627.8,0.00042465,2]
[377246789,1754306071742,-1868.95,0.00042465,2]
[377246790,1754306071751,-468.7,0.00042465,2]
[377246791,1754306071761,-914.79,0.00042465,2]
[377246792,1754306071770,-1387.83,0.00042465,2]
[377246793,1754306071779,-1314.14,0.00042465,2]
[377246794,1754306071789,-1038.98,0.00042465,2]
[377246795,1754306071798,-1014.44,0.00042465,2]
[377246796,1754306071807,-935.88,0.00042465,2]
[377246797,1754306071817,-925.88,0.00042465,2]
[377246798,1754306071827,-400.0,0.00042465,2]
[377246799,1754306071836,-590.39,0.00042465,2]
[377246800,1754306071845,-1614.1,0.00042465,2]
[377246801,1754306071855,-710.0,0.00042465,2]
[377246802,1754306071864,-1412.5,0.00042465,2]
[377246803,1754306071875,-400.0,0.00042465,2]
[377246804,1754306071884,-608.78,0.00042465,2]
[377246805,1754306071893,-1252.59,0.00042465,2]
[377246806,1754306071902,-856.19,0.00042465,2]
[377246807,1754306071911,-1142.6,0.00042465,2]
[377246808,1754306071920,-400.0,0.00042465,2]
[377246809,1754306071929,-400.0,0.00042465,2]
[377246810,1754306071938,-793.48,0.00042465,2]
[377246811,1754306071947,-810.9,0.00042465,2]
[377246812,1754306071956,-1752.3,0.00042465,2]
[377246813,1754306071971,-1639.2,0.00042465,2]
[377246814,1754306071980,-1057.57,0.00042465,2]
[377246815,1754306071989,-400.0,0.00042465,2]
[377246816,1754306071998,-1894.1,0.00042465,2]
[377246817,1754306072009,-161.84002151,0.00042465,2]
[377246818,1754306072018,-400.0,0.00042465,2]
[377246819,1754306072027,-695.98,0.00042465,2]
[377246820,1754306072038,-1899.23,0.00042465,2]
[377246821,1754306072048,-1066.82,0.00042465,2]
[377246822,1754306072057,-1326.33,0.00042465,2]
[377246823,1754306072066,-1189.48,0.00042465,2]
[377246824,1754306072075,-405.69,0.00042465,2]
[377246825,1754306072084,-1704.15,0.00042465,2]
[377246826,1754306072094,-1046.61,0.00042465,2]
[377246827,1754306072103,-833.04,0.00042465,2]
[377246828,1754306072112,-400.0,0.00042465,2]
[377246829,1754306072121,-400.0,0.00042465,2]
[377246830,1754306072130,-684.99,0.00042465,2]
[377246831,1754306072139,-400.0,0.00042465,2]
[377246832,1754306072148,-925.69,0.00042465,2]
[377246833,1754306072157,-482.48,0.00042465,2]
[377246834,1754306072166,-596.8,0.00042465,2]
[377246835,1754306072175,-1463.3,0.00042465,2]
[377246836,1754306072184,-1295.25,0.00042465,2]
[377246837,1754306072193,-2145.64,0.00042465,2]
[377246838,1754306072203,-1283.66,0.00042465,2]
[377246839,1754306072212,-758.52,0.00042465,2]
[377246840,1754306072221,-721.69,0.00042465,2]
[377246841,1754306072230,-1612.63,0.00042465,2]
[377246842,1754306072240,-766.66,0.00042465,2]
[377246843,1754306072250,-627.97,0.00042465,2]
[377246844,1754306072259,-988.46,0.00042465,2]
[377246845,1754306072268,-453.42,0.00042465,2]
[377246846,1754306072277,-400.0,0.00042465,2]
[377246847,1754306072286,-7192.74,0.00042465,2]
[377246848,1754306072296,-896.0,0.00042465,2]
[377246849,1754306072305,-285.0405335,0.00042465,2]
[377246850,1754306072314,-400.0,0.00042465,2]
[377246851,1754306072325,-1762.88,0.00042465,2]
[377246852,1754306072335,-1472.33,0.00042465,2]
[377246853,1754306072344,-1303.02,0.00042465,2]
[377246854,1754306072353,-796.7,0.00042465,2]
[377246855,1754306072362,-1414.12,0.00042465,2]
[377246856,1754306072371,-700.57,0.00042465,2]
[377246857,1754306072381,-553.07,0.00042465,2]
[377246858,1754306072391,-986.33,0.00042465,2]
[377246859,1754306072400,-400.0,0.00042465,2]
[377246860,1754306072409,-658.58,0.00042465,2]
[377246861,1754306072418,-400.0,0.00042465,2]
[377246862,1754306072428,-499.21,0.00042465,2]
[377246863,1754306072437,-1050.51,0.00042465,2]
[377246864,1754306072446,-1836.51,0.00042465,2]
[377246865,1754306072456,-682.1,0.00042465,2]
[377246866,1754306072466,-739.68,0.00042465,2]
[377246867,1754306072476,-1274.01,0.00042465,2]
[377246868,1754306072485,-651.05,0.00042465,2]
[377246869,1754306072495,-1321.92,0.00042465,2]
[377246870,1754306072504,-1303.02,0.00042465,2]
[377246871,1754306072514,-822.07,0.00042465,2]
[377246872,1754306072524,-1091.32,0.00042465,2]
[377246873,1754306072534,-562.8,0.00042465,2]
[377246874,1754306072543,-999.83,0.00042465,2]
[377246875,1754306072553,-793.84,0.00042465,2]
[377246876,1754306072562,-1242.64,0.00042465,2]
[377246877,1754306072572,-1330.82,0.00042465,2]
[377246878,1754306072581,-596.36,0.00042465,2]
[377246879,1754306072591,-558.09,0.00042465,2]
[377246880,1754306072603,-1446.54,0.00042465,2]
[377246881,1754306072615,-1346.03,0.00042465,2]
[377246882,1754306072625,-1481.75,0.00042465,2]
[377246883,1754306072634,-879.7,0.00042465,2]
[377246884,1754306072643,-1081.44,0.00042465,2]
[377246885,1754306072653,-2294.74,0.00042465,2]
[377246886,1754306072662,-2185.11,0.00042465,2]
[377246887,1754306072672,-528.1,0.00042465,2]
[377246888,1754306072682,-764.62,0.00042465,2]
[377246889,1754306072691,-768.31,0.00042465,2]
[377246890,1754306072701,-2154.11,0.00042465,2]
[377246891,1754306072711,-1687.51,0.00042465,2]
[377246892,1754306072721,-884.68,0.00042465,2]
[377246893,1754306072731,-1797.87,0.00042465,2]
[377246894,1754306072740,-670.62,0.00042465,2]
[377246895,1754306072750,-466.07,0.00042465,2]
[377246896,1754306072761,-1427.05,0.00042465,2]
[377246897,1754306072771,-430.38,0.00042465,2]
[377246898,1754306072781,-400.0,0.00042465,2]
[377246899,1754306072790,-659.47,0.00042465,2]
[377246900,1754306072800,-1547.49,0.00042465,2]
[377246901,1754306072810,-948.07,0.00042465,2]
[377246902,1754306072819,-1424.69,0.00042465,2]
[377246903,1754306072829,-1692.45,0.00042465,2]
[377246904,1754306072838,-1630.8,0.00042465,2]
[377246905,1754306072848,-840.48,0.00042465,2]
[377246906,1754306072857,-665.52,0.00042465,2]
[377246907,1754306072867,-870.74,0.00042465,2]
[377246908,1754306072877,-1702.7,0.00042465,2]
[377246909,1754306072886,-727.65,0.00042465,2]
[377246910,1754306072895,-1068.48,0.00042465,2]
[377246911,1754306072905,-469.7,0.00042465,2]
[377246912,1754306072914,-1880.84,0.00042465,2]
[377246913,1754306072923,-1107.78,0.00042465,2]
[377246914,1754306072933,-400.0,0.00042465,2]
[377246915,1754306072942,-813.9,0.00042465,2]
[377246916,1754306072952,-874.7,0.00042465,2]
[377246917,1754306072961,-400.0,0.00042465,2]
[377246918,1754306072973,-400.0,0.00042465,2]
[377246919,1754306072982,-426.16,0.00042465,2]
[377246920,1754306072992,-1110.47,0.00042465,2]
[377246921,1754306073001,-665.68,0.00042465,2]
[377246922,1754306073010,-400.0,0.00042465,2]
[377246923,1754306073019,-903.87,0.00042465,2]
[377246924,1754306073029,-470.81,0.00042465,2]
[377246925,1754306073038,-1358.5,0.00042465,2]
[377246926,1754306073048,-440.85,0.00042465,2]
[377246927,1754306073058,-1246.04,0.00042465,2]
[377246928,1754306073068,-1647.73,0.00042465,2]
[377246929,1754306073079,-1443.42,0.00042465,2]
[377246930,1754306073089,-994.67,0.00042465,2]
[377246931,1754306073099,-924.22,0.00042465,2]
[377246932,1754306073108,-472.86,0.00042465,2]